{"text_format":"3","workbook":"xlsx","n_sheets":6,"sheets":["Panel","Ventas","Ingresos","Gastos","Impuestos","Categorías"],"not_rendered":{"images":1,"defined_names":34},"read":"whole","date_system":"1900"}

{"sheet":"Panel","index":0,"n_rows":19,"n_cols":8,"rows_kept":19,"merged":[[0,2,0,4],[0,6,3,7],[4,1,4,7]]}
[null,"Balance de pérdidas y ganancias","Para el fin de [mes o año] [mes-día-año]"]
[null,"Nombre de la compañía","Expresado en millares"]
[null,"Margen bruto actual [L/J]",{"$f":"IFERROR(IF(Total_de_ganacia_bruta=0,\"-\",Total_de_ganacia_bruta/Total_de_ingresos_por_ventas),\"-\")","v":"-"}]
[null,"Rentabilidad de ventas actual [T/J]",{"$f":"IFERROR(IF(Beneficios_netos=0,\"-\",Beneficios_netos/Total_de_ingresos_por_ventas),\"-\")","v":"-"}]
[null,"No modifique las categorías de esta hoja de cálculo porque podrían producirse errores de fórmulas. Use la hoja de cálculo Categoría para agregar categorías y actualice las hojas de cálculo correspondientes con entradas. Esta hoja de cálculo se actualizará automáticamente."]
[null,"Resumen","Total del período anterior","Presupuesto total","Total actual\nPeríodo","Total del período actual como porcentaje de ventas","Total de porcentaje de cambio desde el período anterior","Total de porcentaje de cambio desde presupuesto"]
[null,"Total de ingresos por ventas [J]",{"$f":"SUMIFS(IngresosPorVentas[Período anterior],IngresosPorVentas[Tipo de ingreso],\"Ingresos por ventas\")","v":0},{"$f":"SUMIFS(IngresosPorVentas[Presupuesto],IngresosPorVentas[Tipo de ingreso],\"Ingresos por ventas\")","v":0},{"$f":"SUMIFS(IngresosPorVentas[Período actual],IngresosPorVentas[Tipo de ingreso],\"Ingresos por ventas\")","v":0},{"$f":"SUMIFS(IngresosPorVentas[Período actual como porcentaje de ventas],IngresosPorVentas[Tipo de ingreso],\"Ingresos por ventas\")","v":{"v":0,"d":"0.00%"}},{"$f":"SUMIFS(IngresosPorVentas[Porcentaje de cambio desde el período anterior],IngresosPorVentas[Tipo de ingreso],\"Ingresos por ventas\")","v":{"v":0,"d":"0.00%"}},{"$f":"SUMIFS(IngresosPorVentas[Porcentaje de cambio desde presupuesto],IngresosPorVentas[Tipo de ingreso],\"Ingresos por ventas\")","v":{"v":0,"d":"0.00%"}}]
[null,"Costo de ventas total [K]",{"$f":"SUMIFS(IngresosPorVentas[Período anterior],IngresosPorVentas[Tipo de ingreso],\"Costo de ventas\")","v":0},{"$f":"SUMIFS(IngresosPorVentas[Presupuesto],IngresosPorVentas[Tipo de ingreso],\"Costo de ventas\")","v":0},{"$f":"SUMIFS(IngresosPorVentas[Período actual],IngresosPorVentas[Tipo de ingreso],\"Costo de ventas\")","v":0},{"$f":"SUMIFS(IngresosPorVentas[Período actual como porcentaje de ventas],IngresosPorVentas[Tipo de ingreso],\"Costo de ventas\")","v":{"v":0,"d":"0.00%"}},{"$f":"SUMIFS(IngresosPorVentas[Porcentaje de cambio desde el período anterior],IngresosPorVentas[Tipo de ingreso],\"Costo de ventas\")","v":{"v":0,"d":"0.00%"}},{"$f":"SUMIFS(IngresosPorVentas[Porcentaje de cambio desde presupuesto],IngresosPorVentas[Tipo de ingreso],\"Costo de ventas\")","v":{"v":0,"d":"0.00%"}}]
[null,"Total de ventas y gastos de marketing [M]",{"$f":"SUMIFS(Gastos_operativos[Período anterior],Gastos_operativos[Tipo de gasto],\"Ventas y marketing\")","v":0},{"$f":"SUMIFS(Gastos_operativos[Presupuesto],Gastos_operativos[Tipo de gasto],\"Ventas y marketing\")","v":0},{"$f":"SUMIFS(Gastos_operativos[Período actual],Gastos_operativos[Tipo de gasto],\"Ventas y marketing\")","v":0},{"$f":"SUMIFS(Gastos_operativos[Período actual como porcentaje de ventas],Gastos_operativos[Tipo de gasto],\"Ventas y marketing\")","v":{"v":0,"d":"0.00%"}},{"$f":"SUMIFS(Gastos_operativos[Porcentaje de cambio desde el período anterior],Gastos_operativos[Tipo de gasto],\"Ventas y marketing\")","v":{"v":0,"d":"0.00%"}},{"$f":"SUMIFS(Gastos_operativos[Porcentaje de cambio desde presupuesto],Gastos_operativos[Tipo de gasto],\"Ventas y marketing\")","v":{"v":0,"d":"0.00%"}}]
[null,"Total de gastos en investigación y desarrollo [N]",{"$f":"SUMIFS(Gastos_operativos[Período anterior],Gastos_operativos[Tipo de gasto],\"Investigación y desarrollo\")","v":0},{"$f":"SUMIFS(Gastos_operativos[Presupuesto],Gastos_operativos[Tipo de gasto],\"Investigación y desarrollo\")","v":0},{"$f":"SUMIFS(Gastos_operativos[Período actual],Gastos_operativos[Tipo de gasto],\"Investigación y desarrollo\")","v":0},{"$f":"SUMIFS(Gastos_operativos[Período actual como porcentaje de ventas],Gastos_operativos[Tipo de gasto],\"Investigación y desarrollo\")","v":{"v":0,"d":"0.00%"}},{"$f":"SUMIFS(Gastos_operativos[Porcentaje de cambio desde el período anterior],Gastos_operativos[Tipo de gasto],\"Investigación y desarrollo\")","v":{"v":0,"d":"0.00%"}},{"$f":"SUMIFS(Gastos_operativos[Porcentaje de cambio desde presupuesto],Gastos_operativos[Tipo de gasto],\"Investigación y desarrollo\")","v":{"v":0,"d":"0.00%"}}]
[null,"Total de gastos generales y administrativos [O]",{"$f":"SUMIFS(Gastos_operativos[Período anterior],Gastos_operativos[Tipo de gasto],\"Generales y administrativos\")","v":0},{"$f":"SUMIFS(Gastos_operativos[Presupuesto],Gastos_operativos[Tipo de gasto],\"Generales y administrativos\")","v":0},{"$f":"SUMIFS(Gastos_operativos[Período actual],Gastos_operativos[Tipo de gasto],\"Generales y administrativos\")","v":0},{"$f":"SUMIFS(Gastos_operativos[Período actual como porcentaje de ventas],Gastos_operativos[Tipo de gasto],\"Generales y administrativos\")","v":{"v":0,"d":"0.00%"}},{"$f":"SUMIFS(Gastos_operativos[Porcentaje de cambio desde el período anterior],Gastos_operativos[Tipo de gasto],\"Generales y administrativos\")","v":{"v":0,"d":"0.00%"}},{"$f":"SUMIFS(Gastos_operativos[Porcentaje de cambio desde presupuesto],Gastos_operativos[Tipo de gasto],\"Generales y administrativos\")","v":{"v":0,"d":"0.00%"}}]
[null,"Total de otros gastos operativos [P]",{"$f":"Gastos_operativos[[#Totals],[Período anterior]]-SUM(C9:C11)","v":0},{"$f":"Gastos_operativos[[#Totals],[Presupuesto]]-SUM(D9:D11)","v":0},{"$f":"Gastos_operativos[[#Totals],[Período actual]]-SUM(E9:E11)","v":0},{"$f":"Gastos_operativos[[#Totals],[Período actual como porcentaje de ventas]]-SUM(F9:F11)","v":{"v":0,"d":"0.00%"}},{"$f":"Gastos_operativos[[#Totals],[Porcentaje de cambio desde el período anterior]]-SUM(G9:G11)","v":{"v":0,"d":"0.00%"}},{"$f":"Gastos_operativos[[#Totals],[Porcentaje de cambio desde presupuesto]]-SUM(H9:H11)","v":{"v":0,"d":"0.00%"}}]
[null,"Otros ingresos [S]",{"$f":"Ingresos[[#Totals],[Período anterior]]","v":0},{"$f":"Ingresos[[#Totals],[Presupuesto]]","v":0},{"$f":"Ingresos[[#Totals],[Período actual]]","v":0},{"$f":"Ingresos[[#Totals],[Período actual como porcentaje de ventas]]","v":{"v":0,"d":"0.00%"}},{"$f":"Ingresos[[#Totals],[Porcentaje de cambio desde el período anterior]]","v":{"v":0,"d":"0.00%"}},{"$f":"Ingresos[[#Totals],[Porcentaje de cambio desde presupuesto]]","v":{"v":0,"d":"0.00%"}}]
[null,"Total de impuestos [T]",{"$f":"Impuestos[[#Totals],[Período anterior]]","v":0},{"$f":"Impuestos[[#Totals],[Presupuesto]]","v":0},{"$f":"Impuestos[[#Totals],[Período actual]]","v":0},{"$f":"Impuestos[[#Totals],[Período actual como porcentaje de ventas]]","v":{"v":0,"d":"0.00%"}},{"$f":"Impuestos[[#Totals],[Porcentaje de cambio desde el período anterior]]","v":{"v":0,"d":"0.00%"}},{"$f":"Impuestos[[#Totals],[Porcentaje de cambio desde presupuesto]]","v":{"v":0,"d":"0.00%"}}]
[]
[null,"Ganancia bruta [L=J-K]",{"$f":"IFERROR(C7-C8,\"-\")","v":0},{"$f":"IFERROR(D7-D8,\"-\")","v":0},{"$f":"IFERROR(Total_de_ingresos_por_ventas-Costo_de_ventas_total,\"-\")","v":0},{"$f":"IFERROR(IF(Total_de_ingresos_por_ventas=0,\"0,00%\",Total_de_ganacia_bruta/Total_de_ingresos_por_ventas),\"-\")","v":"0,00%"},{"$f":"IFERROR(IF(C16=Total_de_ganacia_bruta,0,IF(Total_de_ganacia_bruta>C16,ABS((Total_de_ganacia_bruta/C16)-1),IF(AND(Total_de_ganacia_bruta<C16,C16<0),-((Total_de_ganacia_bruta/C16)-1),(Total_de_ganacia_bruta/C16)-1))),\"-\")","v":{"v":0,"d":"0.00%"}},{"$f":"IFERROR(IF(D16=Total_de_ganacia_bruta,0,IF(Total_de_ganacia_bruta>D16,ABS((Total_de_ganacia_bruta/D16)-1),IF(AND(Total_de_ganacia_bruta<D16,D16<0),-((Total_de_ganacia_bruta/D16)-1),(Total_de_ganacia_bruta/D16)-1))),\"-\")","v":{"v":0,"d":"0.00%"}}]
[null,"Total de gastos operativos [Q=M+N+O+P]",{"$f":"IFERROR(C9+C10+C11+C12,\"-\")","v":0},{"$f":"IFERROR(D9+D10+D11+D12,\"-\")","v":0},{"$f":"IFERROR(Total_de_ventas_y_marketing+Total_de_investigación_y_desarrollo+Total_general_y_administrativo+Total_de_otros_gastos,\"-\")","v":0},{"$f":"IFERROR(IF(Total_de_ingresos_por_ventas=0,\"0,00%\",Total_de_gastos_operativos/Total_de_ingresos_por_ventas),\"-\")","v":"0,00%"},{"$f":"IFERROR(IF(C17=Total_de_gastos_operativos,0,IF(Total_de_gastos_operativos>C17,ABS((Total_de_gastos_operativos/C17)-1),IF(AND(Total_de_gastos_operativos<C17,C17<0),-((Total_de_gastos_operativos/C17)-1),(Total_de_gastos_operativos/C17)-1))),\"-\")","v":{"v":0,"d":"0.00%"}},{"$f":"IFERROR(IF(D17=Total_de_gastos_operativos,0,IF(Total_de_gastos_operativos>D17,ABS((Total_de_gastos_operativos/D17)-1),IF(AND(Total_de_gastos_operativos<D17,D17<0),-((Total_de_gastos_operativos/D17)-1),(Total_de_gastos_operativos/D17)-1))),\"-\")","v":{"v":0,"d":"0.00%"}}]
[null,"Ingresos de operaciones [R=L-Q]",{"$f":"IFERROR(C16-C17,\"-\")","v":0},{"$f":"IFERROR(D16-D17,\"-\")","v":0},{"$f":"IFERROR(Total_de_ganacia_bruta-Total_de_gastos_operativos,\"-\")","v":0},{"$f":"IFERROR(IF(Total_de_ingresos_por_ventas=0,\"0,00%\",Total_de_ingresos_por_operaciones/Total_de_ingresos_por_ventas),\"-\")","v":"0,00%"},{"$f":"IFERROR(IF(C18=Total_de_ingresos_por_operaciones,0,IF(Total_de_ingresos_por_operaciones>C18,ABS((Total_de_ingresos_por_operaciones/C18)-1),IF(AND(Total_de_ingresos_por_operaciones<C18,C18<0),-((Total_de_ingresos_por_operaciones/C18)-1),(Total_de_ingresos_por_operaciones/C18)-1))),\"-\")","v":{"v":0,"d":"0.00%"}},{"$f":"IFERROR(IF(D18=Total_de_ingresos_por_operaciones,0,IF(Total_de_ingresos_por_operaciones>D18,ABS((Total_de_ingresos_por_operaciones/D18)-1),IF(AND(Total_de_ingresos_por_operaciones<D18,D18<0),-((Total_de_ingresos_por_operaciones/D18)-1),(Total_de_ingresos_por_operaciones/D18)-1))),\"-\")","v":{"v":0,"d":"0.00%"}}]
[null,"Ganancia neta [U=R+S-T]",{"$f":"IFERROR(C18+C13-C14,\"-\")","v":0},{"$f":"IFERROR(D18+D13-D14,\"-\")","v":0},{"$f":"Total_de_ingresos_por_operaciones+Total_de_otros_ingresos-Total_de_impuestos","v":0},{"$f":"IFERROR(IF(Total_de_ingresos_por_ventas=0,\"0,00%\",Beneficios_netos/Total_de_ingresos_por_ventas),\"-\")","v":"0,00%"},{"$f":"IFERROR(IF(C19=Beneficios_netos,0,IF(Beneficios_netos>C19,ABS((Beneficios_netos/C19)-1),IF(AND(Beneficios_netos<C19,C19<0),-((Beneficios_netos/C19)-1),(Beneficios_netos/C19)-1))),\"-\")","v":{"v":0,"d":"0.00%"}},{"$f":"IFERROR(IF(D19=Beneficios_netos,0,IF(Beneficios_netos>D19,ABS((Beneficios_netos/D19)-1),IF(AND(Beneficios_netos<D19,D19<0),-((Beneficios_netos/D19)-1),(Beneficios_netos/D19)-1))),\"-\")","v":{"v":0,"d":"0.00%"}}]

{"sheet":"Ventas","index":1,"n_rows":13,"n_cols":9,"rows_kept":13,"merged":[[0,7,2,8]]}
[null,{"$f":"Título_del_libro","v":"Balance de pérdidas y ganancias"}]
[null,{"$f":"Nombre_de_la_compañía","v":"Nombre de la compañía"},"Expresado en millares"]
[null,"Ingresos por ventas",{"$f":"IFERROR(Ingresos_Por_Ventas,\"-\")","v":0}]
[null,"Tipo de ingreso","Descripción","Período anterior","Presupuesto","Período actual","Período actual como porcentaje de ventas","Porcentaje de cambio desde el período anterior","Porcentaje de cambio desde presupuesto"]
[null,"Ingresos por ventas","Producto/servicio 1",{"$nulls":3},{"$f":"IFERROR(IF(IngresosPorVentas[[#Totals],[Período actual]]=0,\"-\",IngresosPorVentas[Período actual]/Ingresos_Por_Ventas),\"-\")","v":"-"},{"$f":"IFERROR(IF(IngresosPorVentas[[#This Row],[Período anterior]]=IngresosPorVentas[[#This Row],[Período actual]],0,IF(IngresosPorVentas[[#This Row],[Período actual]]>IngresosPorVentas[[#This Row],[Período anterior]],ABS((IngresosPorVentas[[#This Row],[Período actual]]/IngresosPorVentas[[#This Row],[Período anterior]])-1),IF(AND(IngresosPorVentas[[#This Row],[Período actual]]<IngresosPorVentas[[#This Row],[Período anterior]],IngresosPorVentas[[#This Row],[Período anterior]]<0),-((IngresosPorVentas[[#This Row],[Período actual]]/IngresosPorVentas[[#This Row],[Período anterior]])-1),(IngresosPorVentas[[#This Row],[Período actual]]/IngresosPorVentas[[#This Row],[Período anterior]])-1))),\"-\")","v":{"v":0,"d":"0.00%"}},{"$f":"IFERROR(IF(IngresosPorVentas[[#This Row],[Presupuesto]]=IngresosPorVentas[[#This Row],[Período actual]],0,IF(IngresosPorVentas[[#This Row],[Período actual]]>IngresosPorVentas[[#This Row],[Presupuesto]],ABS((IngresosPorVentas[[#This Row],[Período actual]]/IngresosPorVentas[[#This Row],[Presupuesto]])-1),IF(AND(IngresosPorVentas[[#This Row],[Período actual]]<IngresosPorVentas[[#This Row],[Presupuesto]],IngresosPorVentas[[#This Row],[Presupuesto]]<0),-((IngresosPorVentas[[#This Row],[Período actual]]/IngresosPorVentas[[#This Row],[Presupuesto]])-1),(IngresosPorVentas[[#This Row],[Período actual]]/IngresosPorVentas[[#This Row],[Presupuesto]])-1))),\"-\")","v":{"v":0,"d":"0.00%"}}]
[null,"Ingresos por ventas","Producto/servicio 2",{"$nulls":3},{"$f":"IFERROR(IF(IngresosPorVentas[[#Totals],[Período actual]]=0,\"-\",IngresosPorVentas[Período actual]/Ingresos_Por_Ventas),\"-\")","v":"-"},{"$f":"IFERROR(IF(IngresosPorVentas[[#This Row],[Período anterior]]=IngresosPorVentas[[#This Row],[Período actual]],0,IF(IngresosPorVentas[[#This Row],[Período actual]]>IngresosPorVentas[[#This Row],[Período anterior]],ABS((IngresosPorVentas[[#This Row],[Período actual]]/IngresosPorVentas[[#This Row],[Período anterior]])-1),IF(AND(IngresosPorVentas[[#This Row],[Período actual]]<IngresosPorVentas[[#This Row],[Período anterior]],IngresosPorVentas[[#This Row],[Período anterior]]<0),-((IngresosPorVentas[[#This Row],[Período actual]]/IngresosPorVentas[[#This Row],[Período anterior]])-1),(IngresosPorVentas[[#This Row],[Período actual]]/IngresosPorVentas[[#This Row],[Período anterior]])-1))),\"-\")","v":{"v":0,"d":"0.00%"}},{"$f":"IFERROR(IF(IngresosPorVentas[[#This Row],[Presupuesto]]=IngresosPorVentas[[#This Row],[Período actual]],0,IF(IngresosPorVentas[[#This Row],[Período actual]]>IngresosPorVentas[[#This Row],[Presupuesto]],ABS((IngresosPorVentas[[#This Row],[Período actual]]/IngresosPorVentas[[#This Row],[Presupuesto]])-1),IF(AND(IngresosPorVentas[[#This Row],[Período actual]]<IngresosPorVentas[[#This Row],[Presupuesto]],IngresosPorVentas[[#This Row],[Presupuesto]]<0),-((IngresosPorVentas[[#This Row],[Período actual]]/IngresosPorVentas[[#This Row],[Presupuesto]])-1),(IngresosPorVentas[[#This Row],[Período actual]]/IngresosPorVentas[[#This Row],[Presupuesto]])-1))),\"-\")","v":{"v":0,"d":"0.00%"}}]
[null,"Ingresos por ventas","Producto/servicio 3",{"$nulls":3},{"$f":"IFERROR(IF(IngresosPorVentas[[#Totals],[Período actual]]=0,\"-\",IngresosPorVentas[Período actual]/Ingresos_Por_Ventas),\"-\")","v":"-"},{"$f":"IFERROR(IF(IngresosPorVentas[[#This Row],[Período anterior]]=IngresosPorVentas[[#This Row],[Período actual]],0,IF(IngresosPorVentas[[#This Row],[Período actual]]>IngresosPorVentas[[#This Row],[Período anterior]],ABS((IngresosPorVentas[[#This Row],[Período actual]]/IngresosPorVentas[[#This Row],[Período anterior]])-1),IF(AND(IngresosPorVentas[[#This Row],[Período actual]]<IngresosPorVentas[[#This Row],[Período anterior]],IngresosPorVentas[[#This Row],[Período anterior]]<0),-((IngresosPorVentas[[#This Row],[Período actual]]/IngresosPorVentas[[#This Row],[Período anterior]])-1),(IngresosPorVentas[[#This Row],[Período actual]]/IngresosPorVentas[[#This Row],[Período anterior]])-1))),\"-\")","v":{"v":0,"d":"0.00%"}},{"$f":"IFERROR(IF(IngresosPorVentas[[#This Row],[Presupuesto]]=IngresosPorVentas[[#This Row],[Período actual]],0,IF(IngresosPorVentas[[#This Row],[Período actual]]>IngresosPorVentas[[#This Row],[Presupuesto]],ABS((IngresosPorVentas[[#This Row],[Período actual]]/IngresosPorVentas[[#This Row],[Presupuesto]])-1),IF(AND(IngresosPorVentas[[#This Row],[Período actual]]<IngresosPorVentas[[#This Row],[Presupuesto]],IngresosPorVentas[[#This Row],[Presupuesto]]<0),-((IngresosPorVentas[[#This Row],[Período actual]]/IngresosPorVentas[[#This Row],[Presupuesto]])-1),(IngresosPorVentas[[#This Row],[Período actual]]/IngresosPorVentas[[#This Row],[Presupuesto]])-1))),\"-\")","v":{"v":0,"d":"0.00%"}}]
[null,"Ingresos por ventas","Producto/servicio 4",{"$nulls":3},{"$f":"IFERROR(IF(IngresosPorVentas[[#Totals],[Período actual]]=0,\"-\",IngresosPorVentas[Período actual]/Ingresos_Por_Ventas),\"-\")","v":"-"},{"$f":"IFERROR(IF(IngresosPorVentas[[#This Row],[Período anterior]]=IngresosPorVentas[[#This Row],[Período actual]],0,IF(IngresosPorVentas[[#This Row],[Período actual]]>IngresosPorVentas[[#This Row],[Período anterior]],ABS((IngresosPorVentas[[#This Row],[Período actual]]/IngresosPorVentas[[#This Row],[Período anterior]])-1),IF(AND(IngresosPorVentas[[#This Row],[Período actual]]<IngresosPorVentas[[#This Row],[Período anterior]],IngresosPorVentas[[#This Row],[Período anterior]]<0),-((IngresosPorVentas[[#This Row],[Período actual]]/IngresosPorVentas[[#This Row],[Período anterior]])-1),(IngresosPorVentas[[#This Row],[Período actual]]/IngresosPorVentas[[#This Row],[Período anterior]])-1))),\"-\")","v":{"v":0,"d":"0.00%"}},{"$f":"IFERROR(IF(IngresosPorVentas[[#This Row],[Presupuesto]]=IngresosPorVentas[[#This Row],[Período actual]],0,IF(IngresosPorVentas[[#This Row],[Período actual]]>IngresosPorVentas[[#This Row],[Presupuesto]],ABS((IngresosPorVentas[[#This Row],[Período actual]]/IngresosPorVentas[[#This Row],[Presupuesto]])-1),IF(AND(IngresosPorVentas[[#This Row],[Período actual]]<IngresosPorVentas[[#This Row],[Presupuesto]],IngresosPorVentas[[#This Row],[Presupuesto]]<0),-((IngresosPorVentas[[#This Row],[Período actual]]/IngresosPorVentas[[#This Row],[Presupuesto]])-1),(IngresosPorVentas[[#This Row],[Período actual]]/IngresosPorVentas[[#This Row],[Presupuesto]])-1))),\"-\")","v":{"v":0,"d":"0.00%"}}]
[null,"Costo de ventas","Producto/servicio 1",{"$nulls":3},{"$f":"IFERROR(IF(IngresosPorVentas[[#Totals],[Período actual]]=0,\"-\",IngresosPorVentas[Período actual]/Ingresos_Por_Ventas),\"-\")","v":"-"},{"$f":"IFERROR(IF(IngresosPorVentas[[#This Row],[Período anterior]]=IngresosPorVentas[[#This Row],[Período actual]],0,IF(IngresosPorVentas[[#This Row],[Período actual]]>IngresosPorVentas[[#This Row],[Período anterior]],ABS((IngresosPorVentas[[#This Row],[Período actual]]/IngresosPorVentas[[#This Row],[Período anterior]])-1),IF(AND(IngresosPorVentas[[#This Row],[Período actual]]<IngresosPorVentas[[#This Row],[Período anterior]],IngresosPorVentas[[#This Row],[Período anterior]]<0),-((IngresosPorVentas[[#This Row],[Período actual]]/IngresosPorVentas[[#This Row],[Período anterior]])-1),(IngresosPorVentas[[#This Row],[Período actual]]/IngresosPorVentas[[#This Row],[Período anterior]])-1))),\"-\")","v":{"v":0,"d":"0.00%"}},{"$f":"IFERROR(IF(IngresosPorVentas[[#This Row],[Presupuesto]]=IngresosPorVentas[[#This Row],[Período actual]],0,IF(IngresosPorVentas[[#This Row],[Período actual]]>IngresosPorVentas[[#This Row],[Presupuesto]],ABS((IngresosPorVentas[[#This Row],[Período actual]]/IngresosPorVentas[[#This Row],[Presupuesto]])-1),IF(AND(IngresosPorVentas[[#This Row],[Período actual]]<IngresosPorVentas[[#This Row],[Presupuesto]],IngresosPorVentas[[#This Row],[Presupuesto]]<0),-((IngresosPorVentas[[#This Row],[Período actual]]/IngresosPorVentas[[#This Row],[Presupuesto]])-1),(IngresosPorVentas[[#This Row],[Período actual]]/IngresosPorVentas[[#This Row],[Presupuesto]])-1))),\"-\")","v":{"v":0,"d":"0.00%"}}]
[null,"Costo de ventas","Producto/servicio 2",{"$nulls":3},{"$f":"IFERROR(IF(IngresosPorVentas[[#Totals],[Período actual]]=0,\"-\",IngresosPorVentas[Período actual]/Ingresos_Por_Ventas),\"-\")","v":"-"},{"$f":"IFERROR(IF(IngresosPorVentas[[#This Row],[Período anterior]]=IngresosPorVentas[[#This Row],[Período actual]],0,IF(IngresosPorVentas[[#This Row],[Período actual]]>IngresosPorVentas[[#This Row],[Período anterior]],ABS((IngresosPorVentas[[#This Row],[Período actual]]/IngresosPorVentas[[#This Row],[Período anterior]])-1),IF(AND(IngresosPorVentas[[#This Row],[Período actual]]<IngresosPorVentas[[#This Row],[Período anterior]],IngresosPorVentas[[#This Row],[Período anterior]]<0),-((IngresosPorVentas[[#This Row],[Período actual]]/IngresosPorVentas[[#This Row],[Período anterior]])-1),(IngresosPorVentas[[#This Row],[Período actual]]/IngresosPorVentas[[#This Row],[Período anterior]])-1))),\"-\")","v":{"v":0,"d":"0.00%"}},{"$f":"IFERROR(IF(IngresosPorVentas[[#This Row],[Presupuesto]]=IngresosPorVentas[[#This Row],[Período actual]],0,IF(IngresosPorVentas[[#This Row],[Período actual]]>IngresosPorVentas[[#This Row],[Presupuesto]],ABS((IngresosPorVentas[[#This Row],[Período actual]]/IngresosPorVentas[[#This Row],[Presupuesto]])-1),IF(AND(IngresosPorVentas[[#This Row],[Período actual]]<IngresosPorVentas[[#This Row],[Presupuesto]],IngresosPorVentas[[#This Row],[Presupuesto]]<0),-((IngresosPorVentas[[#This Row],[Período actual]]/IngresosPorVentas[[#This Row],[Presupuesto]])-1),(IngresosPorVentas[[#This Row],[Período actual]]/IngresosPorVentas[[#This Row],[Presupuesto]])-1))),\"-\")","v":{"v":0,"d":"0.00%"}}]
[null,"Costo de ventas","Producto/servicio 3",{"$nulls":3},{"$f":"IFERROR(IF(IngresosPorVentas[[#Totals],[Período actual]]=0,\"-\",IngresosPorVentas[Período actual]/Ingresos_Por_Ventas),\"-\")","v":"-"},{"$f":"IFERROR(IF(IngresosPorVentas[[#This Row],[Período anterior]]=IngresosPorVentas[[#This Row],[Período actual]],0,IF(IngresosPorVentas[[#This Row],[Período actual]]>IngresosPorVentas[[#This Row],[Período anterior]],ABS((IngresosPorVentas[[#This Row],[Período actual]]/IngresosPorVentas[[#This Row],[Período anterior]])-1),IF(AND(IngresosPorVentas[[#This Row],[Período actual]]<IngresosPorVentas[[#This Row],[Período anterior]],IngresosPorVentas[[#This Row],[Período anterior]]<0),-((IngresosPorVentas[[#This Row],[Período actual]]/IngresosPorVentas[[#This Row],[Período anterior]])-1),(IngresosPorVentas[[#This Row],[Período actual]]/IngresosPorVentas[[#This Row],[Período anterior]])-1))),\"-\")","v":{"v":0,"d":"0.00%"}},{"$f":"IFERROR(IF(IngresosPorVentas[[#This Row],[Presupuesto]]=IngresosPorVentas[[#This Row],[Período actual]],0,IF(IngresosPorVentas[[#This Row],[Período actual]]>IngresosPorVentas[[#This Row],[Presupuesto]],ABS((IngresosPorVentas[[#This Row],[Período actual]]/IngresosPorVentas[[#This Row],[Presupuesto]])-1),IF(AND(IngresosPorVentas[[#This Row],[Período actual]]<IngresosPorVentas[[#This Row],[Presupuesto]],IngresosPorVentas[[#This Row],[Presupuesto]]<0),-((IngresosPorVentas[[#This Row],[Período actual]]/IngresosPorVentas[[#This Row],[Presupuesto]])-1),(IngresosPorVentas[[#This Row],[Período actual]]/IngresosPorVentas[[#This Row],[Presupuesto]])-1))),\"-\")","v":{"v":0,"d":"0.00%"}}]
[null,"Costo de ventas","Producto/servicio 4",{"$nulls":3},{"$f":"IFERROR(IF(IngresosPorVentas[[#Totals],[Período actual]]=0,\"-\",IngresosPorVentas[Período actual]/Ingresos_Por_Ventas),\"-\")","v":"-"},{"$f":"IFERROR(IF(IngresosPorVentas[[#This Row],[Período anterior]]=IngresosPorVentas[[#This Row],[Período actual]],0,IF(IngresosPorVentas[[#This Row],[Período actual]]>IngresosPorVentas[[#This Row],[Período anterior]],ABS((IngresosPorVentas[[#This Row],[Período actual]]/IngresosPorVentas[[#This Row],[Período anterior]])-1),IF(AND(IngresosPorVentas[[#This Row],[Período actual]]<IngresosPorVentas[[#This Row],[Período anterior]],IngresosPorVentas[[#This Row],[Período anterior]]<0),-((IngresosPorVentas[[#This Row],[Período actual]]/IngresosPorVentas[[#This Row],[Período anterior]])-1),(IngresosPorVentas[[#This Row],[Período actual]]/IngresosPorVentas[[#This Row],[Período anterior]])-1))),\"-\")","v":{"v":0,"d":"0.00%"}},{"$f":"IFERROR(IF(IngresosPorVentas[[#This Row],[Presupuesto]]=IngresosPorVentas[[#This Row],[Período actual]],0,IF(IngresosPorVentas[[#This Row],[Período actual]]>IngresosPorVentas[[#This Row],[Presupuesto]],ABS((IngresosPorVentas[[#This Row],[Período actual]]/IngresosPorVentas[[#This Row],[Presupuesto]])-1),IF(AND(IngresosPorVentas[[#This Row],[Período actual]]<IngresosPorVentas[[#This Row],[Presupuesto]],IngresosPorVentas[[#This Row],[Presupuesto]]<0),-((IngresosPorVentas[[#This Row],[Período actual]]/IngresosPorVentas[[#This Row],[Presupuesto]])-1),(IngresosPorVentas[[#This Row],[Período actual]]/IngresosPorVentas[[#This Row],[Presupuesto]])-1))),\"-\")","v":{"v":0,"d":"0.00%"}}]
[null,"Total de ingresos por ventas",null,{"$f":"SUBTOTAL(109,IngresosPorVentas[Período anterior])","v":0},{"$f":"SUBTOTAL(109,IngresosPorVentas[Presupuesto])","v":0},{"$f":"SUBTOTAL(109,IngresosPorVentas[Período actual])","v":0},{"$f":"SUBTOTAL(109,IngresosPorVentas[Período actual como porcentaje de ventas])","v":{"v":0,"d":"0.00%"}},{"$f":"SUBTOTAL(109,IngresosPorVentas[Porcentaje de cambio desde el período anterior])","v":{"v":0,"d":"0.00%"}},{"$f":"SUBTOTAL(109,IngresosPorVentas[Porcentaje de cambio desde presupuesto])","v":{"v":0,"d":"0.00%"}}]

{"sheet":"Ingresos","index":2,"n_rows":7,"n_cols":9,"rows_kept":7,"merged":[[0,7,2,8]]}
[null,{"$f":"Título_del_libro","v":"Balance de pérdidas y ganancias"}]
[null,{"$f":"Nombre_de_la_compañía","v":"Nombre de la compañía"},"Expresado en millares"]
[null,"Ingresos",{"$f":"IFERROR(Ingresos[[#Totals],[Período actual]],\"-\")","v":0}]
[null,"Tipo de ingreso","Descripción","Período anterior","Presupuesto","Período actual","Período actual como porcentaje de ventas","Porcentaje de cambio desde el período anterior","Porcentaje de cambio desde presupuesto"]
[null,"Ingresos","Otros ingresos",{"$nulls":3},{"$f":"IFERROR(IF(Ingresos_Por_Ventas=0,\"-\",Ingresos[Período actual]/Ingresos_Por_Ventas),\"-\")","v":"-"},{"$f":"IFERROR(IF(Ingresos[[#This Row],[Período anterior]]=Ingresos[[#This Row],[Período actual]],0,IF(Ingresos[[#This Row],[Período actual]]>Ingresos[[#This Row],[Período anterior]],ABS((Ingresos[[#This Row],[Período actual]]/Ingresos[[#This Row],[Período anterior]])-1),IF(AND(Ingresos[[#This Row],[Período actual]]<Ingresos[[#This Row],[Período anterior]],Ingresos[[#This Row],[Período anterior]]<0),-((Ingresos[[#This Row],[Período actual]]/Ingresos[[#This Row],[Período anterior]])-1),(Ingresos[[#This Row],[Período actual]]/Ingresos[[#This Row],[Período anterior]])-1))),\"-\")","v":{"v":0,"d":"0.00%"}},{"$f":"IFERROR(IF(Ingresos[[#This Row],[Presupuesto]]=Ingresos[[#This Row],[Período actual]],0,IF(Ingresos[[#This Row],[Período actual]]>Ingresos[[#This Row],[Presupuesto]],ABS((Ingresos[[#This Row],[Período actual]]/Ingresos[[#This Row],[Presupuesto]])-1),IF(AND(Ingresos[[#This Row],[Período actual]]<Ingresos[[#This Row],[Presupuesto]],Ingresos[[#This Row],[Presupuesto]]<0),-((Ingresos[[#This Row],[Período actual]]/Ingresos[[#This Row],[Presupuesto]])-1),(Ingresos[[#This Row],[Período actual]]/Ingresos[[#This Row],[Presupuesto]])-1))),\"-\")","v":{"v":0,"d":"0.00%"}}]
[{"$nulls":6},{"$f":"IFERROR(IF(Ingresos_Por_Ventas=0,\"-\",Ingresos[Período actual]/Ingresos_Por_Ventas),\"-\")","v":"-"},{"$f":"IFERROR(IF(Ingresos[[#This Row],[Período anterior]]=Ingresos[[#This Row],[Período actual]],0,IF(Ingresos[[#This Row],[Período actual]]>Ingresos[[#This Row],[Período anterior]],ABS((Ingresos[[#This Row],[Período actual]]/Ingresos[[#This Row],[Período anterior]])-1),IF(AND(Ingresos[[#This Row],[Período actual]]<Ingresos[[#This Row],[Período anterior]],Ingresos[[#This Row],[Período anterior]]<0),-((Ingresos[[#This Row],[Período actual]]/Ingresos[[#This Row],[Período anterior]])-1),(Ingresos[[#This Row],[Período actual]]/Ingresos[[#This Row],[Período anterior]])-1))),\"-\")","v":{"v":0,"d":"0.00%"}},{"$f":"IFERROR(IF(Ingresos[[#This Row],[Presupuesto]]=Ingresos[[#This Row],[Período actual]],0,IF(Ingresos[[#This Row],[Período actual]]>Ingresos[[#This Row],[Presupuesto]],ABS((Ingresos[[#This Row],[Período actual]]/Ingresos[[#This Row],[Presupuesto]])-1),IF(AND(Ingresos[[#This Row],[Período actual]]<Ingresos[[#This Row],[Presupuesto]],Ingresos[[#This Row],[Presupuesto]]<0),-((Ingresos[[#This Row],[Período actual]]/Ingresos[[#This Row],[Presupuesto]])-1),(Ingresos[[#This Row],[Período actual]]/Ingresos[[#This Row],[Presupuesto]])-1))),\"-\")","v":{"v":0,"d":"0.00%"}}]
[null,"Total de ingresos por ventas",null,{"$f":"SUBTOTAL(109,Ingresos[Período anterior])","v":0},{"$f":"SUBTOTAL(109,Ingresos[Presupuesto])","v":0},{"$f":"SUBTOTAL(109,Ingresos[Período actual])","v":0},{"$f":"SUBTOTAL(109,Ingresos[Período actual como porcentaje de ventas])","v":{"v":0,"d":"0.00%"}},{"$f":"SUBTOTAL(109,Ingresos[Porcentaje de cambio desde el período anterior])","v":{"v":0,"d":"0.00%"}},{"$f":"SUBTOTAL(109,Ingresos[Porcentaje de cambio desde presupuesto])","v":{"v":0,"d":"0.00%"}}]

{"sheet":"Gastos","index":3,"n_rows":25,"n_cols":9,"rows_kept":25,"merged":[[0,7,2,8]]}
[null,{"$f":"Título_del_libro","v":"Balance de pérdidas y ganancias"}]
[null,{"$f":"Nombre_de_la_compañía","v":"Nombre de la compañía"},"Expresado en millares"]
[null,"Gastos operativos",{"$f":"IFERROR(Gastos_operativos[[#Totals],[Período actual]],\"-\")","v":0}]
[null,"Tipo de gasto","Descripción","Período anterior","Presupuesto","Período actual","Período actual como porcentaje de ventas","Porcentaje de cambio desde el período anterior","Porcentaje de cambio desde presupuesto"]
[null,"Ventas y marketing","Publicidad",{"$nulls":3},{"$f":"IFERROR(IF(Ingresos_Por_Ventas=0,\"-\",Gastos_operativos[Período actual]/Ingresos_Por_Ventas),\"-\")","v":"-"},{"$f":"IFERROR(IF(Gastos_operativos[[#This Row],[Período anterior]]=Gastos_operativos[[#This Row],[Período actual]],0,IF(Gastos_operativos[[#This Row],[Período actual]]>Gastos_operativos[[#This Row],[Período anterior]],ABS((Gastos_operativos[[#This Row],[Período actual]]/Gastos_operativos[[#This Row],[Período anterior]])-1),IF(AND(Gastos_operativos[[#This Row],[Período actual]]<Gastos_operativos[[#This Row],[Período anterior]],Gastos_operativos[[#This Row],[Período anterior]]<0),-((Gastos_operativos[[#This Row],[Período actual]]/Gastos_operativos[[#This Row],[Período anterior]])-1),(Gastos_operativos[[#This Row],[Período actual]]/Gastos_operativos[[#This Row],[Período anterior]])-1))),\"-\")","v":{"v":0,"d":"0.00%"}},{"$f":"IFERROR(IF(Gastos_operativos[[#This Row],[Presupuesto]]=Gastos_operativos[[#This Row],[Período actual]],0,IF(Gastos_operativos[[#This Row],[Período actual]]>Gastos_operativos[[#This Row],[Presupuesto]],ABS((Gastos_operativos[[#This Row],[Período actual]]/Gastos_operativos[[#This Row],[Presupuesto]])-1),IF(AND(Gastos_operativos[[#This Row],[Período actual]]<Gastos_operativos[[#This Row],[Presupuesto]],Gastos_operativos[[#This Row],[Presupuesto]]<0),-((Gastos_operativos[[#This Row],[Período actual]]/Gastos_operativos[[#This Row],[Presupuesto]])-1),(Gastos_operativos[[#This Row],[Período actual]]/Gastos_operativos[[#This Row],[Presupuesto]])-1))),\"-\")","v":{"v":0,"d":"0.00%"}}]
[null,"Ventas y marketing","Marketing directo",{"$nulls":3},{"$f":"IFERROR(IF(Ingresos_Por_Ventas=0,\"-\",Gastos_operativos[Período actual]/Ingresos_Por_Ventas),\"-\")","v":"-"},{"$f":"IFERROR(IF(Gastos_operativos[[#This Row],[Período anterior]]=Gastos_operativos[[#This Row],[Período actual]],0,IF(Gastos_operativos[[#This Row],[Período actual]]>Gastos_operativos[[#This Row],[Período anterior]],ABS((Gastos_operativos[[#This Row],[Período actual]]/Gastos_operativos[[#This Row],[Período anterior]])-1),IF(AND(Gastos_operativos[[#This Row],[Período actual]]<Gastos_operativos[[#This Row],[Período anterior]],Gastos_operativos[[#This Row],[Período anterior]]<0),-((Gastos_operativos[[#This Row],[Período actual]]/Gastos_operativos[[#This Row],[Período anterior]])-1),(Gastos_operativos[[#This Row],[Período actual]]/Gastos_operativos[[#This Row],[Período anterior]])-1))),\"-\")","v":{"v":0,"d":"0.00%"}},{"$f":"IFERROR(IF(Gastos_operativos[[#This Row],[Presupuesto]]=Gastos_operativos[[#This Row],[Período actual]],0,IF(Gastos_operativos[[#This Row],[Período actual]]>Gastos_operativos[[#This Row],[Presupuesto]],ABS((Gastos_operativos[[#This Row],[Período actual]]/Gastos_operativos[[#This Row],[Presupuesto]])-1),IF(AND(Gastos_operativos[[#This Row],[Período actual]]<Gastos_operativos[[#This Row],[Presupuesto]],Gastos_operativos[[#This Row],[Presupuesto]]<0),-((Gastos_operativos[[#This Row],[Período actual]]/Gastos_operativos[[#This Row],[Presupuesto]])-1),(Gastos_operativos[[#This Row],[Período actual]]/Gastos_operativos[[#This Row],[Presupuesto]])-1))),\"-\")","v":{"v":0,"d":"0.00%"}}]
[null,"Ventas y marketing","Otros gastos (especifique)",{"$nulls":3},{"$f":"IFERROR(IF(Ingresos_Por_Ventas=0,\"-\",Gastos_operativos[Período actual]/Ingresos_Por_Ventas),\"-\")","v":"-"},{"$f":"IFERROR(IF(Gastos_operativos[[#This Row],[Período anterior]]=Gastos_operativos[[#This Row],[Período actual]],0,IF(Gastos_operativos[[#This Row],[Período actual]]>Gastos_operativos[[#This Row],[Período anterior]],ABS((Gastos_operativos[[#This Row],[Período actual]]/Gastos_operativos[[#This Row],[Período anterior]])-1),IF(AND(Gastos_operativos[[#This Row],[Período actual]]<Gastos_operativos[[#This Row],[Período anterior]],Gastos_operativos[[#This Row],[Período anterior]]<0),-((Gastos_operativos[[#This Row],[Período actual]]/Gastos_operativos[[#This Row],[Período anterior]])-1),(Gastos_operativos[[#This Row],[Período actual]]/Gastos_operativos[[#This Row],[Período anterior]])-1))),\"-\")","v":{"v":0,"d":"0.00%"}},{"$f":"IFERROR(IF(Gastos_operativos[[#This Row],[Presupuesto]]=Gastos_operativos[[#This Row],[Período actual]],0,IF(Gastos_operativos[[#This Row],[Período actual]]>Gastos_operativos[[#This Row],[Presupuesto]],ABS((Gastos_operativos[[#This Row],[Período actual]]/Gastos_operativos[[#This Row],[Presupuesto]])-1),IF(AND(Gastos_operativos[[#This Row],[Período actual]]<Gastos_operativos[[#This Row],[Presupuesto]],Gastos_operativos[[#This Row],[Presupuesto]]<0),-((Gastos_operativos[[#This Row],[Período actual]]/Gastos_operativos[[#This Row],[Presupuesto]])-1),(Gastos_operativos[[#This Row],[Período actual]]/Gastos_operativos[[#This Row],[Presupuesto]])-1))),\"-\")","v":{"v":0,"d":"0.00%"}}]
[null,"Ventas y marketing","Otros gastos (especifique)",{"$nulls":3},{"$f":"IFERROR(IF(Ingresos_Por_Ventas=0,\"-\",Gastos_operativos[Período actual]/Ingresos_Por_Ventas),\"-\")","v":"-"},{"$f":"IFERROR(IF(Gastos_operativos[[#This Row],[Período anterior]]=Gastos_operativos[[#This Row],[Período actual]],0,IF(Gastos_operativos[[#This Row],[Período actual]]>Gastos_operativos[[#This Row],[Período anterior]],ABS((Gastos_operativos[[#This Row],[Período actual]]/Gastos_operativos[[#This Row],[Período anterior]])-1),IF(AND(Gastos_operativos[[#This Row],[Período actual]]<Gastos_operativos[[#This Row],[Período anterior]],Gastos_operativos[[#This Row],[Período anterior]]<0),-((Gastos_operativos[[#This Row],[Período actual]]/Gastos_operativos[[#This Row],[Período anterior]])-1),(Gastos_operativos[[#This Row],[Período actual]]/Gastos_operativos[[#This Row],[Período anterior]])-1))),\"-\")","v":{"v":0,"d":"0.00%"}},{"$f":"IFERROR(IF(Gastos_operativos[[#This Row],[Presupuesto]]=Gastos_operativos[[#This Row],[Período actual]],0,IF(Gastos_operativos[[#This Row],[Período actual]]>Gastos_operativos[[#This Row],[Presupuesto]],ABS((Gastos_operativos[[#This Row],[Período actual]]/Gastos_operativos[[#This Row],[Presupuesto]])-1),IF(AND(Gastos_operativos[[#This Row],[Período actual]]<Gastos_operativos[[#This Row],[Presupuesto]],Gastos_operativos[[#This Row],[Presupuesto]]<0),-((Gastos_operativos[[#This Row],[Período actual]]/Gastos_operativos[[#This Row],[Presupuesto]])-1),(Gastos_operativos[[#This Row],[Período actual]]/Gastos_operativos[[#This Row],[Presupuesto]])-1))),\"-\")","v":{"v":0,"d":"0.00%"}}]
[null,"Investigación y desarrollo","Licencias de tecnología",{"$nulls":3},{"$f":"IFERROR(IF(Ingresos_Por_Ventas=0,\"-\",Gastos_operativos[Período actual]/Ingresos_Por_Ventas),\"-\")","v":"-"},{"$f":"IFERROR(IF(Gastos_operativos[[#This Row],[Período anterior]]=Gastos_operativos[[#This Row],[Período actual]],0,IF(Gastos_operativos[[#This Row],[Período actual]]>Gastos_operativos[[#This Row],[Período anterior]],ABS((Gastos_operativos[[#This Row],[Período actual]]/Gastos_operativos[[#This Row],[Período anterior]])-1),IF(AND(Gastos_operativos[[#This Row],[Período actual]]<Gastos_operativos[[#This Row],[Período anterior]],Gastos_operativos[[#This Row],[Período anterior]]<0),-((Gastos_operativos[[#This Row],[Período actual]]/Gastos_operativos[[#This Row],[Período anterior]])-1),(Gastos_operativos[[#This Row],[Período actual]]/Gastos_operativos[[#This Row],[Período anterior]])-1))),\"-\")","v":{"v":0,"d":"0.00%"}},{"$f":"IFERROR(IF(Gastos_operativos[[#This Row],[Presupuesto]]=Gastos_operativos[[#This Row],[Período actual]],0,IF(Gastos_operativos[[#This Row],[Período actual]]>Gastos_operativos[[#This Row],[Presupuesto]],ABS((Gastos_operativos[[#This Row],[Período actual]]/Gastos_operativos[[#This Row],[Presupuesto]])-1),IF(AND(Gastos_operativos[[#This Row],[Período actual]]<Gastos_operativos[[#This Row],[Presupuesto]],Gastos_operativos[[#This Row],[Presupuesto]]<0),-((Gastos_operativos[[#This Row],[Período actual]]/Gastos_operativos[[#This Row],[Presupuesto]])-1),(Gastos_operativos[[#This Row],[Período actual]]/Gastos_operativos[[#This Row],[Presupuesto]])-1))),\"-\")","v":{"v":0,"d":"0.00%"}}]
[null,"Investigación y desarrollo","Patentes ",{"$nulls":3},{"$f":"IFERROR(IF(Ingresos_Por_Ventas=0,\"-\",Gastos_operativos[Período actual]/Ingresos_Por_Ventas),\"-\")","v":"-"},{"$f":"IFERROR(IF(Gastos_operativos[[#This Row],[Período anterior]]=Gastos_operativos[[#This Row],[Período actual]],0,IF(Gastos_operativos[[#This Row],[Período actual]]>Gastos_operativos[[#This Row],[Período anterior]],ABS((Gastos_operativos[[#This Row],[Período actual]]/Gastos_operativos[[#This Row],[Período anterior]])-1),IF(AND(Gastos_operativos[[#This Row],[Período actual]]<Gastos_operativos[[#This Row],[Período anterior]],Gastos_operativos[[#This Row],[Período anterior]]<0),-((Gastos_operativos[[#This Row],[Período actual]]/Gastos_operativos[[#This Row],[Período anterior]])-1),(Gastos_operativos[[#This Row],[Período actual]]/Gastos_operativos[[#This Row],[Período anterior]])-1))),\"-\")","v":{"v":0,"d":"0.00%"}},{"$f":"IFERROR(IF(Gastos_operativos[[#This Row],[Presupuesto]]=Gastos_operativos[[#This Row],[Período actual]],0,IF(Gastos_operativos[[#This Row],[Período actual]]>Gastos_operativos[[#This Row],[Presupuesto]],ABS((Gastos_operativos[[#This Row],[Período actual]]/Gastos_operativos[[#This Row],[Presupuesto]])-1),IF(AND(Gastos_operativos[[#This Row],[Período actual]]<Gastos_operativos[[#This Row],[Presupuesto]],Gastos_operativos[[#This Row],[Presupuesto]]<0),-((Gastos_operativos[[#This Row],[Período actual]]/Gastos_operativos[[#This Row],[Presupuesto]])-1),(Gastos_operativos[[#This Row],[Período actual]]/Gastos_operativos[[#This Row],[Presupuesto]])-1))),\"-\")","v":{"v":0,"d":"0.00%"}}]
[null,"Investigación y desarrollo","Otros gastos (especifique)",{"$nulls":3},{"$f":"IFERROR(IF(Ingresos_Por_Ventas=0,\"-\",Gastos_operativos[Período actual]/Ingresos_Por_Ventas),\"-\")","v":"-"},{"$f":"IFERROR(IF(Gastos_operativos[[#This Row],[Período anterior]]=Gastos_operativos[[#This Row],[Período actual]],0,IF(Gastos_operativos[[#This Row],[Período actual]]>Gastos_operativos[[#This Row],[Período anterior]],ABS((Gastos_operativos[[#This Row],[Período actual]]/Gastos_operativos[[#This Row],[Período anterior]])-1),IF(AND(Gastos_operativos[[#This Row],[Período actual]]<Gastos_operativos[[#This Row],[Período anterior]],Gastos_operativos[[#This Row],[Período anterior]]<0),-((Gastos_operativos[[#This Row],[Período actual]]/Gastos_operativos[[#This Row],[Período anterior]])-1),(Gastos_operativos[[#This Row],[Período actual]]/Gastos_operativos[[#This Row],[Período anterior]])-1))),\"-\")","v":{"v":0,"d":"0.00%"}},{"$f":"IFERROR(IF(Gastos_operativos[[#This Row],[Presupuesto]]=Gastos_operativos[[#This Row],[Período actual]],0,IF(Gastos_operativos[[#This Row],[Período actual]]>Gastos_operativos[[#This Row],[Presupuesto]],ABS((Gastos_operativos[[#This Row],[Período actual]]/Gastos_operativos[[#This Row],[Presupuesto]])-1),IF(AND(Gastos_operativos[[#This Row],[Período actual]]<Gastos_operativos[[#This Row],[Presupuesto]],Gastos_operativos[[#This Row],[Presupuesto]]<0),-((Gastos_operativos[[#This Row],[Período actual]]/Gastos_operativos[[#This Row],[Presupuesto]])-1),(Gastos_operativos[[#This Row],[Período actual]]/Gastos_operativos[[#This Row],[Presupuesto]])-1))),\"-\")","v":{"v":0,"d":"0.00%"}}]
[null,"Investigación y desarrollo","Otros gastos (especifique)",{"$nulls":3},{"$f":"IFERROR(IF(Ingresos_Por_Ventas=0,\"-\",Gastos_operativos[Período actual]/Ingresos_Por_Ventas),\"-\")","v":"-"},{"$f":"IFERROR(IF(Gastos_operativos[[#This Row],[Período anterior]]=Gastos_operativos[[#This Row],[Período actual]],0,IF(Gastos_operativos[[#This Row],[Período actual]]>Gastos_operativos[[#This Row],[Período anterior]],ABS((Gastos_operativos[[#This Row],[Período actual]]/Gastos_operativos[[#This Row],[Período anterior]])-1),IF(AND(Gastos_operativos[[#This Row],[Período actual]]<Gastos_operativos[[#This Row],[Período anterior]],Gastos_operativos[[#This Row],[Período anterior]]<0),-((Gastos_operativos[[#This Row],[Período actual]]/Gastos_operativos[[#This Row],[Período anterior]])-1),(Gastos_operativos[[#This Row],[Período actual]]/Gastos_operativos[[#This Row],[Período anterior]])-1))),\"-\")","v":{"v":0,"d":"0.00%"}},{"$f":"IFERROR(IF(Gastos_operativos[[#This Row],[Presupuesto]]=Gastos_operativos[[#This Row],[Período actual]],0,IF(Gastos_operativos[[#This Row],[Período actual]]>Gastos_operativos[[#This Row],[Presupuesto]],ABS((Gastos_operativos[[#This Row],[Período actual]]/Gastos_operativos[[#This Row],[Presupuesto]])-1),IF(AND(Gastos_operativos[[#This Row],[Período actual]]<Gastos_operativos[[#This Row],[Presupuesto]],Gastos_operativos[[#This Row],[Presupuesto]]<0),-((Gastos_operativos[[#This Row],[Período actual]]/Gastos_operativos[[#This Row],[Presupuesto]])-1),(Gastos_operativos[[#This Row],[Período actual]]/Gastos_operativos[[#This Row],[Presupuesto]])-1))),\"-\")","v":{"v":0,"d":"0.00%"}}]
[null,"Generales y administrativos","Salarios y sueldos",{"$nulls":3},{"$f":"IFERROR(IF(Ingresos_Por_Ventas=0,\"-\",Gastos_operativos[Período actual]/Ingresos_Por_Ventas),\"-\")","v":"-"},{"$f":"IFERROR(IF(Gastos_operativos[[#This Row],[Período anterior]]=Gastos_operativos[[#This Row],[Período actual]],0,IF(Gastos_operativos[[#This Row],[Período actual]]>Gastos_operativos[[#This Row],[Período anterior]],ABS((Gastos_operativos[[#This Row],[Período actual]]/Gastos_operativos[[#This Row],[Período anterior]])-1),IF(AND(Gastos_operativos[[#This Row],[Período actual]]<Gastos_operativos[[#This Row],[Período anterior]],Gastos_operativos[[#This Row],[Período anterior]]<0),-((Gastos_operativos[[#This Row],[Período actual]]/Gastos_operativos[[#This Row],[Período anterior]])-1),(Gastos_operativos[[#This Row],[Período actual]]/Gastos_operativos[[#This Row],[Período anterior]])-1))),\"-\")","v":{"v":0,"d":"0.00%"}},{"$f":"IFERROR(IF(Gastos_operativos[[#This Row],[Presupuesto]]=Gastos_operativos[[#This Row],[Período actual]],0,IF(Gastos_operativos[[#This Row],[Período actual]]>Gastos_operativos[[#This Row],[Presupuesto]],ABS((Gastos_operativos[[#This Row],[Período actual]]/Gastos_operativos[[#This Row],[Presupuesto]])-1),IF(AND(Gastos_operativos[[#This Row],[Período actual]]<Gastos_operativos[[#This Row],[Presupuesto]],Gastos_operativos[[#This Row],[Presupuesto]]<0),-((Gastos_operativos[[#This Row],[Período actual]]/Gastos_operativos[[#This Row],[Presupuesto]])-1),(Gastos_operativos[[#This Row],[Período actual]]/Gastos_operativos[[#This Row],[Presupuesto]])-1))),\"-\")","v":{"v":0,"d":"0.00%"}}]
[null,"Generales y administrativos","Servicios externos",{"$nulls":3},{"$f":"IFERROR(IF(Ingresos_Por_Ventas=0,\"-\",Gastos_operativos[Período actual]/Ingresos_Por_Ventas),\"-\")","v":"-"},{"$f":"IFERROR(IF(Gastos_operativos[[#This Row],[Período anterior]]=Gastos_operativos[[#This Row],[Período actual]],0,IF(Gastos_operativos[[#This Row],[Período actual]]>Gastos_operativos[[#This Row],[Período anterior]],ABS((Gastos_operativos[[#This Row],[Período actual]]/Gastos_operativos[[#This Row],[Período anterior]])-1),IF(AND(Gastos_operativos[[#This Row],[Período actual]]<Gastos_operativos[[#This Row],[Período anterior]],Gastos_operativos[[#This Row],[Período anterior]]<0),-((Gastos_operativos[[#This Row],[Período actual]]/Gastos_operativos[[#This Row],[Período anterior]])-1),(Gastos_operativos[[#This Row],[Período actual]]/Gastos_operativos[[#This Row],[Período anterior]])-1))),\"-\")","v":{"v":0,"d":"0.00%"}},{"$f":"IFERROR(IF(Gastos_operativos[[#This Row],[Presupuesto]]=Gastos_operativos[[#This Row],[Período actual]],0,IF(Gastos_operativos[[#This Row],[Período actual]]>Gastos_operativos[[#This Row],[Presupuesto]],ABS((Gastos_operativos[[#This Row],[Período actual]]/Gastos_operativos[[#This Row],[Presupuesto]])-1),IF(AND(Gastos_operativos[[#This Row],[Período actual]]<Gastos_operativos[[#This Row],[Presupuesto]],Gastos_operativos[[#This Row],[Presupuesto]]<0),-((Gastos_operativos[[#This Row],[Período actual]]/Gastos_operativos[[#This Row],[Presupuesto]])-1),(Gastos_operativos[[#This Row],[Período actual]]/Gastos_operativos[[#This Row],[Presupuesto]])-1))),\"-\")","v":{"v":0,"d":"0.00%"}}]
[null,"Generales y administrativos","Suministros",{"$nulls":3},{"$f":"IFERROR(IF(Ingresos_Por_Ventas=0,\"-\",Gastos_operativos[Período actual]/Ingresos_Por_Ventas),\"-\")","v":"-"},{"$f":"IFERROR(IF(Gastos_operativos[[#This Row],[Período anterior]]=Gastos_operativos[[#This Row],[Período actual]],0,IF(Gastos_operativos[[#This Row],[Período actual]]>Gastos_operativos[[#This Row],[Período anterior]],ABS((Gastos_operativos[[#This Row],[Período actual]]/Gastos_operativos[[#This Row],[Período anterior]])-1),IF(AND(Gastos_operativos[[#This Row],[Período actual]]<Gastos_operativos[[#This Row],[Período anterior]],Gastos_operativos[[#This Row],[Período anterior]]<0),-((Gastos_operativos[[#This Row],[Período actual]]/Gastos_operativos[[#This Row],[Período anterior]])-1),(Gastos_operativos[[#This Row],[Período actual]]/Gastos_operativos[[#This Row],[Período anterior]])-1))),\"-\")","v":{"v":0,"d":"0.00%"}},{"$f":"IFERROR(IF(Gastos_operativos[[#This Row],[Presupuesto]]=Gastos_operativos[[#This Row],[Período actual]],0,IF(Gastos_operativos[[#This Row],[Período actual]]>Gastos_operativos[[#This Row],[Presupuesto]],ABS((Gastos_operativos[[#This Row],[Período actual]]/Gastos_operativos[[#This Row],[Presupuesto]])-1),IF(AND(Gastos_operativos[[#This Row],[Período actual]]<Gastos_operativos[[#This Row],[Presupuesto]],Gastos_operativos[[#This Row],[Presupuesto]]<0),-((Gastos_operativos[[#This Row],[Período actual]]/Gastos_operativos[[#This Row],[Presupuesto]])-1),(Gastos_operativos[[#This Row],[Período actual]]/Gastos_operativos[[#This Row],[Presupuesto]])-1))),\"-\")","v":{"v":0,"d":"0.00%"}}]
[null,"Generales y administrativos","Comidas y entretenimiento",{"$nulls":3},{"$f":"IFERROR(IF(Ingresos_Por_Ventas=0,\"-\",Gastos_operativos[Período actual]/Ingresos_Por_Ventas),\"-\")","v":"-"},{"$f":"IFERROR(IF(Gastos_operativos[[#This Row],[Período anterior]]=Gastos_operativos[[#This Row],[Período actual]],0,IF(Gastos_operativos[[#This Row],[Período actual]]>Gastos_operativos[[#This Row],[Período anterior]],ABS((Gastos_operativos[[#This Row],[Período actual]]/Gastos_operativos[[#This Row],[Período anterior]])-1),IF(AND(Gastos_operativos[[#This Row],[Período actual]]<Gastos_operativos[[#This Row],[Período anterior]],Gastos_operativos[[#This Row],[Período anterior]]<0),-((Gastos_operativos[[#This Row],[Período actual]]/Gastos_operativos[[#This Row],[Período anterior]])-1),(Gastos_operativos[[#This Row],[Período actual]]/Gastos_operativos[[#This Row],[Período anterior]])-1))),\"-\")","v":{"v":0,"d":"0.00%"}},{"$f":"IFERROR(IF(Gastos_operativos[[#This Row],[Presupuesto]]=Gastos_operativos[[#This Row],[Período actual]],0,IF(Gastos_operativos[[#This Row],[Período actual]]>Gastos_operativos[[#This Row],[Presupuesto]],ABS((Gastos_operativos[[#This Row],[Período actual]]/Gastos_operativos[[#This Row],[Presupuesto]])-1),IF(AND(Gastos_operativos[[#This Row],[Período actual]]<Gastos_operativos[[#This Row],[Presupuesto]],Gastos_operativos[[#This Row],[Presupuesto]]<0),-((Gastos_operativos[[#This Row],[Período actual]]/Gastos_operativos[[#This Row],[Presupuesto]])-1),(Gastos_operativos[[#This Row],[Período actual]]/Gastos_operativos[[#This Row],[Presupuesto]])-1))),\"-\")","v":{"v":0,"d":"0.00%"}}]
[null,"Generales y administrativos","Alquiler",{"$nulls":3},{"$f":"IFERROR(IF(Ingresos_Por_Ventas=0,\"-\",Gastos_operativos[Período actual]/Ingresos_Por_Ventas),\"-\")","v":"-"},{"$f":"IFERROR(IF(Gastos_operativos[[#This Row],[Período anterior]]=Gastos_operativos[[#This Row],[Período actual]],0,IF(Gastos_operativos[[#This Row],[Período actual]]>Gastos_operativos[[#This Row],[Período anterior]],ABS((Gastos_operativos[[#This Row],[Período actual]]/Gastos_operativos[[#This Row],[Período anterior]])-1),IF(AND(Gastos_operativos[[#This Row],[Período actual]]<Gastos_operativos[[#This Row],[Período anterior]],Gastos_operativos[[#This Row],[Período anterior]]<0),-((Gastos_operativos[[#This Row],[Período actual]]/Gastos_operativos[[#This Row],[Período anterior]])-1),(Gastos_operativos[[#This Row],[Período actual]]/Gastos_operativos[[#This Row],[Período anterior]])-1))),\"-\")","v":{"v":0,"d":"0.00%"}},{"$f":"IFERROR(IF(Gastos_operativos[[#This Row],[Presupuesto]]=Gastos_operativos[[#This Row],[Período actual]],0,IF(Gastos_operativos[[#This Row],[Período actual]]>Gastos_operativos[[#This Row],[Presupuesto]],ABS((Gastos_operativos[[#This Row],[Período actual]]/Gastos_operativos[[#This Row],[Presupuesto]])-1),IF(AND(Gastos_operativos[[#This Row],[Período actual]]<Gastos_operativos[[#This Row],[Presupuesto]],Gastos_operativos[[#This Row],[Presupuesto]]<0),-((Gastos_operativos[[#This Row],[Período actual]]/Gastos_operativos[[#This Row],[Presupuesto]])-1),(Gastos_operativos[[#This Row],[Período actual]]/Gastos_operativos[[#This Row],[Presupuesto]])-1))),\"-\")","v":{"v":0,"d":"0.00%"}}]
[null,"Generales y administrativos","Teléfono",{"$nulls":3},{"$f":"IFERROR(IF(Ingresos_Por_Ventas=0,\"-\",Gastos_operativos[Período actual]/Ingresos_Por_Ventas),\"-\")","v":"-"},{"$f":"IFERROR(IF(Gastos_operativos[[#This Row],[Período anterior]]=Gastos_operativos[[#This Row],[Período actual]],0,IF(Gastos_operativos[[#This Row],[Período actual]]>Gastos_operativos[[#This Row],[Período anterior]],ABS((Gastos_operativos[[#This Row],[Período actual]]/Gastos_operativos[[#This Row],[Período anterior]])-1),IF(AND(Gastos_operativos[[#This Row],[Período actual]]<Gastos_operativos[[#This Row],[Período anterior]],Gastos_operativos[[#This Row],[Período anterior]]<0),-((Gastos_operativos[[#This Row],[Período actual]]/Gastos_operativos[[#This Row],[Período anterior]])-1),(Gastos_operativos[[#This Row],[Período actual]]/Gastos_operativos[[#This Row],[Período anterior]])-1))),\"-\")","v":{"v":0,"d":"0.00%"}},{"$f":"IFERROR(IF(Gastos_operativos[[#This Row],[Presupuesto]]=Gastos_operativos[[#This Row],[Período actual]],0,IF(Gastos_operativos[[#This Row],[Período actual]]>Gastos_operativos[[#This Row],[Presupuesto]],ABS((Gastos_operativos[[#This Row],[Período actual]]/Gastos_operativos[[#This Row],[Presupuesto]])-1),IF(AND(Gastos_operativos[[#This Row],[Período actual]]<Gastos_operativos[[#This Row],[Presupuesto]],Gastos_operativos[[#This Row],[Presupuesto]]<0),-((Gastos_operativos[[#This Row],[Período actual]]/Gastos_operativos[[#This Row],[Presupuesto]])-1),(Gastos_operativos[[#This Row],[Período actual]]/Gastos_operativos[[#This Row],[Presupuesto]])-1))),\"-\")","v":{"v":0,"d":"0.00%"}}]
[null,"Generales y administrativos","Servicios públicos",{"$nulls":3},{"$f":"IFERROR(IF(Ingresos_Por_Ventas=0,\"-\",Gastos_operativos[Período actual]/Ingresos_Por_Ventas),\"-\")","v":"-"},{"$f":"IFERROR(IF(Gastos_operativos[[#This Row],[Período anterior]]=Gastos_operativos[[#This Row],[Período actual]],0,IF(Gastos_operativos[[#This Row],[Período actual]]>Gastos_operativos[[#This Row],[Período anterior]],ABS((Gastos_operativos[[#This Row],[Período actual]]/Gastos_operativos[[#This Row],[Período anterior]])-1),IF(AND(Gastos_operativos[[#This Row],[Período actual]]<Gastos_operativos[[#This Row],[Período anterior]],Gastos_operativos[[#This Row],[Período anterior]]<0),-((Gastos_operativos[[#This Row],[Período actual]]/Gastos_operativos[[#This Row],[Período anterior]])-1),(Gastos_operativos[[#This Row],[Período actual]]/Gastos_operativos[[#This Row],[Período anterior]])-1))),\"-\")","v":{"v":0,"d":"0.00%"}},{"$f":"IFERROR(IF(Gastos_operativos[[#This Row],[Presupuesto]]=Gastos_operativos[[#This Row],[Período actual]],0,IF(Gastos_operativos[[#This Row],[Período actual]]>Gastos_operativos[[#This Row],[Presupuesto]],ABS((Gastos_operativos[[#This Row],[Período actual]]/Gastos_operativos[[#This Row],[Presupuesto]])-1),IF(AND(Gastos_operativos[[#This Row],[Período actual]]<Gastos_operativos[[#This Row],[Presupuesto]],Gastos_operativos[[#This Row],[Presupuesto]]<0),-((Gastos_operativos[[#This Row],[Período actual]]/Gastos_operativos[[#This Row],[Presupuesto]])-1),(Gastos_operativos[[#This Row],[Período actual]]/Gastos_operativos[[#This Row],[Presupuesto]])-1))),\"-\")","v":{"v":0,"d":"0.00%"}}]
[null,"Generales y administrativos","Depreciación",{"$nulls":3},{"$f":"IFERROR(IF(Ingresos_Por_Ventas=0,\"-\",Gastos_operativos[Período actual]/Ingresos_Por_Ventas),\"-\")","v":"-"},{"$f":"IFERROR(IF(Gastos_operativos[[#This Row],[Período anterior]]=Gastos_operativos[[#This Row],[Período actual]],0,IF(Gastos_operativos[[#This Row],[Período actual]]>Gastos_operativos[[#This Row],[Período anterior]],ABS((Gastos_operativos[[#This Row],[Período actual]]/Gastos_operativos[[#This Row],[Período anterior]])-1),IF(AND(Gastos_operativos[[#This Row],[Período actual]]<Gastos_operativos[[#This Row],[Período anterior]],Gastos_operativos[[#This Row],[Período anterior]]<0),-((Gastos_operativos[[#This Row],[Período actual]]/Gastos_operativos[[#This Row],[Período anterior]])-1),(Gastos_operativos[[#This Row],[Período actual]]/Gastos_operativos[[#This Row],[Período anterior]])-1))),\"-\")","v":{"v":0,"d":"0.00%"}},{"$f":"IFERROR(IF(Gastos_operativos[[#This Row],[Presupuesto]]=Gastos_operativos[[#This Row],[Período actual]],0,IF(Gastos_operativos[[#This Row],[Período actual]]>Gastos_operativos[[#This Row],[Presupuesto]],ABS((Gastos_operativos[[#This Row],[Período actual]]/Gastos_operativos[[#This Row],[Presupuesto]])-1),IF(AND(Gastos_operativos[[#This Row],[Período actual]]<Gastos_operativos[[#This Row],[Presupuesto]],Gastos_operativos[[#This Row],[Presupuesto]]<0),-((Gastos_operativos[[#This Row],[Período actual]]/Gastos_operativos[[#This Row],[Presupuesto]])-1),(Gastos_operativos[[#This Row],[Período actual]]/Gastos_operativos[[#This Row],[Presupuesto]])-1))),\"-\")","v":{"v":0,"d":"0.00%"}}]
[null,"Generales y administrativos","Seguro",{"$nulls":3},{"$f":"IFERROR(IF(Ingresos_Por_Ventas=0,\"-\",Gastos_operativos[Período actual]/Ingresos_Por_Ventas),\"-\")","v":"-"},{"$f":"IFERROR(IF(Gastos_operativos[[#This Row],[Período anterior]]=Gastos_operativos[[#This Row],[Período actual]],0,IF(Gastos_operativos[[#This Row],[Período actual]]>Gastos_operativos[[#This Row],[Período anterior]],ABS((Gastos_operativos[[#This Row],[Período actual]]/Gastos_operativos[[#This Row],[Período anterior]])-1),IF(AND(Gastos_operativos[[#This Row],[Período actual]]<Gastos_operativos[[#This Row],[Período anterior]],Gastos_operativos[[#This Row],[Período anterior]]<0),-((Gastos_operativos[[#This Row],[Período actual]]/Gastos_operativos[[#This Row],[Período anterior]])-1),(Gastos_operativos[[#This Row],[Período actual]]/Gastos_operativos[[#This Row],[Período anterior]])-1))),\"-\")","v":{"v":0,"d":"0.00%"}},{"$f":"IFERROR(IF(Gastos_operativos[[#This Row],[Presupuesto]]=Gastos_operativos[[#This Row],[Período actual]],0,IF(Gastos_operativos[[#This Row],[Período actual]]>Gastos_operativos[[#This Row],[Presupuesto]],ABS((Gastos_operativos[[#This Row],[Período actual]]/Gastos_operativos[[#This Row],[Presupuesto]])-1),IF(AND(Gastos_operativos[[#This Row],[Período actual]]<Gastos_operativos[[#This Row],[Presupuesto]],Gastos_operativos[[#This Row],[Presupuesto]]<0),-((Gastos_operativos[[#This Row],[Período actual]]/Gastos_operativos[[#This Row],[Presupuesto]])-1),(Gastos_operativos[[#This Row],[Período actual]]/Gastos_operativos[[#This Row],[Presupuesto]])-1))),\"-\")","v":{"v":0,"d":"0.00%"}}]
[null,"Generales y administrativos","Reparaciones y mantenimiento",{"$nulls":3},{"$f":"IFERROR(IF(Ingresos_Por_Ventas=0,\"-\",Gastos_operativos[Período actual]/Ingresos_Por_Ventas),\"-\")","v":"-"},{"$f":"IFERROR(IF(Gastos_operativos[[#This Row],[Período anterior]]=Gastos_operativos[[#This Row],[Período actual]],0,IF(Gastos_operativos[[#This Row],[Período actual]]>Gastos_operativos[[#This Row],[Período anterior]],ABS((Gastos_operativos[[#This Row],[Período actual]]/Gastos_operativos[[#This Row],[Período anterior]])-1),IF(AND(Gastos_operativos[[#This Row],[Período actual]]<Gastos_operativos[[#This Row],[Período anterior]],Gastos_operativos[[#This Row],[Período anterior]]<0),-((Gastos_operativos[[#This Row],[Período actual]]/Gastos_operativos[[#This Row],[Período anterior]])-1),(Gastos_operativos[[#This Row],[Período actual]]/Gastos_operativos[[#This Row],[Período anterior]])-1))),\"-\")","v":{"v":0,"d":"0.00%"}},{"$f":"IFERROR(IF(Gastos_operativos[[#This Row],[Presupuesto]]=Gastos_operativos[[#This Row],[Período actual]],0,IF(Gastos_operativos[[#This Row],[Período actual]]>Gastos_operativos[[#This Row],[Presupuesto]],ABS((Gastos_operativos[[#This Row],[Período actual]]/Gastos_operativos[[#This Row],[Presupuesto]])-1),IF(AND(Gastos_operativos[[#This Row],[Período actual]]<Gastos_operativos[[#This Row],[Presupuesto]],Gastos_operativos[[#This Row],[Presupuesto]]<0),-((Gastos_operativos[[#This Row],[Período actual]]/Gastos_operativos[[#This Row],[Presupuesto]])-1),(Gastos_operativos[[#This Row],[Período actual]]/Gastos_operativos[[#This Row],[Presupuesto]])-1))),\"-\")","v":{"v":0,"d":"0.00%"}}]
[null,"Generales y administrativos","Otros gastos (especifique)",{"$nulls":3},{"$f":"IFERROR(IF(Ingresos_Por_Ventas=0,\"-\",Gastos_operativos[Período actual]/Ingresos_Por_Ventas),\"-\")","v":"-"},{"$f":"IFERROR(IF(Gastos_operativos[[#This Row],[Período anterior]]=Gastos_operativos[[#This Row],[Período actual]],0,IF(Gastos_operativos[[#This Row],[Período actual]]>Gastos_operativos[[#This Row],[Período anterior]],ABS((Gastos_operativos[[#This Row],[Período actual]]/Gastos_operativos[[#This Row],[Período anterior]])-1),IF(AND(Gastos_operativos[[#This Row],[Período actual]]<Gastos_operativos[[#This Row],[Período anterior]],Gastos_operativos[[#This Row],[Período anterior]]<0),-((Gastos_operativos[[#This Row],[Período actual]]/Gastos_operativos[[#This Row],[Período anterior]])-1),(Gastos_operativos[[#This Row],[Período actual]]/Gastos_operativos[[#This Row],[Período anterior]])-1))),\"-\")","v":{"v":0,"d":"0.00%"}},{"$f":"IFERROR(IF(Gastos_operativos[[#This Row],[Presupuesto]]=Gastos_operativos[[#This Row],[Período actual]],0,IF(Gastos_operativos[[#This Row],[Período actual]]>Gastos_operativos[[#This Row],[Presupuesto]],ABS((Gastos_operativos[[#This Row],[Período actual]]/Gastos_operativos[[#This Row],[Presupuesto]])-1),IF(AND(Gastos_operativos[[#This Row],[Período actual]]<Gastos_operativos[[#This Row],[Presupuesto]],Gastos_operativos[[#This Row],[Presupuesto]]<0),-((Gastos_operativos[[#This Row],[Período actual]]/Gastos_operativos[[#This Row],[Presupuesto]])-1),(Gastos_operativos[[#This Row],[Período actual]]/Gastos_operativos[[#This Row],[Presupuesto]])-1))),\"-\")","v":{"v":0,"d":"0.00%"}}]
[null,"Generales y administrativos","Otros gastos (especifique)",{"$nulls":3},{"$f":"IFERROR(IF(Ingresos_Por_Ventas=0,\"-\",Gastos_operativos[Período actual]/Ingresos_Por_Ventas),\"-\")","v":"-"},{"$f":"IFERROR(IF(Gastos_operativos[[#This Row],[Período anterior]]=Gastos_operativos[[#This Row],[Período actual]],0,IF(Gastos_operativos[[#This Row],[Período actual]]>Gastos_operativos[[#This Row],[Período anterior]],ABS((Gastos_operativos[[#This Row],[Período actual]]/Gastos_operativos[[#This Row],[Período anterior]])-1),IF(AND(Gastos_operativos[[#This Row],[Período actual]]<Gastos_operativos[[#This Row],[Período anterior]],Gastos_operativos[[#This Row],[Período anterior]]<0),-((Gastos_operativos[[#This Row],[Período actual]]/Gastos_operativos[[#This Row],[Período anterior]])-1),(Gastos_operativos[[#This Row],[Período actual]]/Gastos_operativos[[#This Row],[Período anterior]])-1))),\"-\")","v":{"v":0,"d":"0.00%"}},{"$f":"IFERROR(IF(Gastos_operativos[[#This Row],[Presupuesto]]=Gastos_operativos[[#This Row],[Período actual]],0,IF(Gastos_operativos[[#This Row],[Período actual]]>Gastos_operativos[[#This Row],[Presupuesto]],ABS((Gastos_operativos[[#This Row],[Período actual]]/Gastos_operativos[[#This Row],[Presupuesto]])-1),IF(AND(Gastos_operativos[[#This Row],[Período actual]]<Gastos_operativos[[#This Row],[Presupuesto]],Gastos_operativos[[#This Row],[Presupuesto]]<0),-((Gastos_operativos[[#This Row],[Período actual]]/Gastos_operativos[[#This Row],[Presupuesto]])-1),(Gastos_operativos[[#This Row],[Período actual]]/Gastos_operativos[[#This Row],[Presupuesto]])-1))),\"-\")","v":{"v":0,"d":"0.00%"}}]
[null,"Total de gastos operativos",null,{"$f":"SUBTOTAL(109,Gastos_operativos[Período anterior])","v":0},{"$f":"SUBTOTAL(109,Gastos_operativos[Presupuesto])","v":0},{"$f":"SUBTOTAL(109,Gastos_operativos[Período actual])","v":0},{"$f":"SUBTOTAL(109,Gastos_operativos[Período actual como porcentaje de ventas])","v":{"v":0,"d":"0.00%"}},{"$f":"SUBTOTAL(109,Gastos_operativos[Porcentaje de cambio desde el período anterior])","v":{"v":0,"d":"0.00%"}},{"$f":"SUBTOTAL(109,Gastos_operativos[Porcentaje de cambio desde presupuesto])","v":{"v":0,"d":"0.00%"}}]

{"sheet":"Impuestos","index":4,"n_rows":10,"n_cols":9,"rows_kept":10,"merged":[[0,7,2,8]]}
[null,{"$f":"Título_del_libro","v":"Balance de pérdidas y ganancias"}]
[null,{"$f":"Nombre_de_la_compañía","v":"Nombre de la compañía"},"Expresado en millares"]
[null,"Impuestos",{"$f":"IFERROR(Impuestos[[#Totals],[Período actual]],\"-\")","v":0}]
[null,"Tipo","Descripción","Período anterior","Presupuesto","Período actual","Período actual como porcentaje de ventas","Porcentaje de cambio desde el período anterior","Porcentaje de cambio desde presupuesto"]
[null,"Impuestos","Impuestos sobre la renta",{"$nulls":3},{"$f":"IFERROR(IF(Ingresos_Por_Ventas=0,\"-\",Impuestos[Período actual]/Ingresos_Por_Ventas),\"-\")","v":"-"},{"$f":"IFERROR(IF(Impuestos[[#This Row],[Período anterior]]=Impuestos[[#This Row],[Período actual]],0,IF(Impuestos[[#This Row],[Período actual]]>Impuestos[[#This Row],[Período anterior]],ABS((Impuestos[[#This Row],[Período actual]]/Impuestos[[#This Row],[Período anterior]])-1),IF(AND(Impuestos[[#This Row],[Período actual]]<Impuestos[[#This Row],[Período anterior]],Impuestos[[#This Row],[Período anterior]]<0),-((Impuestos[[#This Row],[Período actual]]/Impuestos[[#This Row],[Período anterior]])-1),(Impuestos[[#This Row],[Período actual]]/Impuestos[[#This Row],[Período anterior]])-1))),\"-\")","v":{"v":0,"d":"0.00%"}},{"$f":"IFERROR(IF(Impuestos[[#This Row],[Presupuesto]]=Impuestos[[#This Row],[Período actual]],0,IF(Impuestos[[#This Row],[Período actual]]>Impuestos[[#This Row],[Presupuesto]],ABS((Impuestos[[#This Row],[Período actual]]/Impuestos[[#This Row],[Presupuesto]])-1),IF(AND(Impuestos[[#This Row],[Período actual]]<Impuestos[[#This Row],[Presupuesto]],Impuestos[[#This Row],[Presupuesto]]<0),-((Impuestos[[#This Row],[Período actual]]/Impuestos[[#This Row],[Presupuesto]])-1),(Impuestos[[#This Row],[Período actual]]/Impuestos[[#This Row],[Presupuesto]])-1))),\"-\")","v":{"v":0,"d":"0.00%"}}]
[null,"Impuestos","Impuestos sobre nóminas",{"$nulls":3},{"$f":"IFERROR(IF(Ingresos_Por_Ventas=0,\"-\",Impuestos[Período actual]/Ingresos_Por_Ventas),\"-\")","v":"-"},{"$f":"IFERROR(IF(Impuestos[[#This Row],[Período anterior]]=Impuestos[[#This Row],[Período actual]],0,IF(Impuestos[[#This Row],[Período actual]]>Impuestos[[#This Row],[Período anterior]],ABS((Impuestos[[#This Row],[Período actual]]/Impuestos[[#This Row],[Período anterior]])-1),IF(AND(Impuestos[[#This Row],[Período actual]]<Impuestos[[#This Row],[Período anterior]],Impuestos[[#This Row],[Período anterior]]<0),-((Impuestos[[#This Row],[Período actual]]/Impuestos[[#This Row],[Período anterior]])-1),(Impuestos[[#This Row],[Período actual]]/Impuestos[[#This Row],[Período anterior]])-1))),\"-\")","v":{"v":0,"d":"0.00%"}},{"$f":"IFERROR(IF(Impuestos[[#This Row],[Presupuesto]]=Impuestos[[#This Row],[Período actual]],0,IF(Impuestos[[#This Row],[Período actual]]>Impuestos[[#This Row],[Presupuesto]],ABS((Impuestos[[#This Row],[Período actual]]/Impuestos[[#This Row],[Presupuesto]])-1),IF(AND(Impuestos[[#This Row],[Período actual]]<Impuestos[[#This Row],[Presupuesto]],Impuestos[[#This Row],[Presupuesto]]<0),-((Impuestos[[#This Row],[Período actual]]/Impuestos[[#This Row],[Presupuesto]])-1),(Impuestos[[#This Row],[Período actual]]/Impuestos[[#This Row],[Presupuesto]])-1))),\"-\")","v":{"v":0,"d":"0.00%"}}]
[null,"Impuestos","Impuestos sobre bienes inmuebles",{"$nulls":3},{"$f":"IFERROR(IF(Ingresos_Por_Ventas=0,\"-\",Impuestos[Período actual]/Ingresos_Por_Ventas),\"-\")","v":"-"},{"$f":"IFERROR(IF(Impuestos[[#This Row],[Período anterior]]=Impuestos[[#This Row],[Período actual]],0,IF(Impuestos[[#This Row],[Período actual]]>Impuestos[[#This Row],[Período anterior]],ABS((Impuestos[[#This Row],[Período actual]]/Impuestos[[#This Row],[Período anterior]])-1),IF(AND(Impuestos[[#This Row],[Período actual]]<Impuestos[[#This Row],[Período anterior]],Impuestos[[#This Row],[Período anterior]]<0),-((Impuestos[[#This Row],[Período actual]]/Impuestos[[#This Row],[Período anterior]])-1),(Impuestos[[#This Row],[Período actual]]/Impuestos[[#This Row],[Período anterior]])-1))),\"-\")","v":{"v":0,"d":"0.00%"}},{"$f":"IFERROR(IF(Impuestos[[#This Row],[Presupuesto]]=Impuestos[[#This Row],[Período actual]],0,IF(Impuestos[[#This Row],[Período actual]]>Impuestos[[#This Row],[Presupuesto]],ABS((Impuestos[[#This Row],[Período actual]]/Impuestos[[#This Row],[Presupuesto]])-1),IF(AND(Impuestos[[#This Row],[Período actual]]<Impuestos[[#This Row],[Presupuesto]],Impuestos[[#This Row],[Presupuesto]]<0),-((Impuestos[[#This Row],[Período actual]]/Impuestos[[#This Row],[Presupuesto]])-1),(Impuestos[[#This Row],[Período actual]]/Impuestos[[#This Row],[Presupuesto]])-1))),\"-\")","v":{"v":0,"d":"0.00%"}}]
[null,"Impuestos","Otros impuestos (especifique)",{"$nulls":3},{"$f":"IFERROR(IF(Ingresos_Por_Ventas=0,\"-\",Impuestos[Período actual]/Ingresos_Por_Ventas),\"-\")","v":"-"},{"$f":"IFERROR(IF(Impuestos[[#This Row],[Período anterior]]=Impuestos[[#This Row],[Período actual]],0,IF(Impuestos[[#This Row],[Período actual]]>Impuestos[[#This Row],[Período anterior]],ABS((Impuestos[[#This Row],[Período actual]]/Impuestos[[#This Row],[Período anterior]])-1),IF(AND(Impuestos[[#This Row],[Período actual]]<Impuestos[[#This Row],[Período anterior]],Impuestos[[#This Row],[Período anterior]]<0),-((Impuestos[[#This Row],[Período actual]]/Impuestos[[#This Row],[Período anterior]])-1),(Impuestos[[#This Row],[Período actual]]/Impuestos[[#This Row],[Período anterior]])-1))),\"-\")","v":{"v":0,"d":"0.00%"}},{"$f":"IFERROR(IF(Impuestos[[#This Row],[Presupuesto]]=Impuestos[[#This Row],[Período actual]],0,IF(Impuestos[[#This Row],[Período actual]]>Impuestos[[#This Row],[Presupuesto]],ABS((Impuestos[[#This Row],[Período actual]]/Impuestos[[#This Row],[Presupuesto]])-1),IF(AND(Impuestos[[#This Row],[Período actual]]<Impuestos[[#This Row],[Presupuesto]],Impuestos[[#This Row],[Presupuesto]]<0),-((Impuestos[[#This Row],[Período actual]]/Impuestos[[#This Row],[Presupuesto]])-1),(Impuestos[[#This Row],[Período actual]]/Impuestos[[#This Row],[Presupuesto]])-1))),\"-\")","v":{"v":0,"d":"0.00%"}}]
[null,"Impuestos","Otros impuestos (especifique)",{"$nulls":3},{"$f":"IFERROR(IF(Ingresos_Por_Ventas=0,\"-\",Impuestos[Período actual]/Ingresos_Por_Ventas),\"-\")","v":"-"},{"$f":"IFERROR(IF(Impuestos[[#This Row],[Período anterior]]=Impuestos[[#This Row],[Período actual]],0,IF(Impuestos[[#This Row],[Período actual]]>Impuestos[[#This Row],[Período anterior]],ABS((Impuestos[[#This Row],[Período actual]]/Impuestos[[#This Row],[Período anterior]])-1),IF(AND(Impuestos[[#This Row],[Período actual]]<Impuestos[[#This Row],[Período anterior]],Impuestos[[#This Row],[Período anterior]]<0),-((Impuestos[[#This Row],[Período actual]]/Impuestos[[#This Row],[Período anterior]])-1),(Impuestos[[#This Row],[Período actual]]/Impuestos[[#This Row],[Período anterior]])-1))),\"-\")","v":{"v":0,"d":"0.00%"}},{"$f":"IFERROR(IF(Impuestos[[#This Row],[Presupuesto]]=Impuestos[[#This Row],[Período actual]],0,IF(Impuestos[[#This Row],[Período actual]]>Impuestos[[#This Row],[Presupuesto]],ABS((Impuestos[[#This Row],[Período actual]]/Impuestos[[#This Row],[Presupuesto]])-1),IF(AND(Impuestos[[#This Row],[Período actual]]<Impuestos[[#This Row],[Presupuesto]],Impuestos[[#This Row],[Presupuesto]]<0),-((Impuestos[[#This Row],[Período actual]]/Impuestos[[#This Row],[Presupuesto]])-1),(Impuestos[[#This Row],[Período actual]]/Impuestos[[#This Row],[Presupuesto]])-1))),\"-\")","v":{"v":0,"d":"0.00%"}}]
[null,"Total de impuestos",null,{"$f":"SUBTOTAL(109,Impuestos[Período anterior])","v":0},{"$f":"SUBTOTAL(109,Impuestos[Presupuesto])","v":0},{"$f":"SUBTOTAL(109,Impuestos[Período actual])","v":0},{"$f":"IFERROR(SUBTOTAL(109,Impuestos[Período actual como porcentaje de ventas]),\"-\")","v":{"v":0,"d":"0.00%"}},{"$f":"SUBTOTAL(109,Impuestos[Porcentaje de cambio desde el período anterior])","v":{"v":0,"d":"0.00%"}},{"$f":"SUBTOTAL(109,Impuestos[Porcentaje de cambio desde presupuesto])","v":{"v":0,"d":"0.00%"}}]

{"sheet":"Categorías","index":5,"n_rows":8,"n_cols":2,"rows_kept":8}
[null,"Categorías"]
[null,"Ingresos por ventas"]
[null,"Costo de ventas"]
[null,"Ingresos"]
[null,"Ventas y marketing"]
[null,"Investigación y desarrollo"]
[null,"Generales y administrativos"]
[null,"Impuestos"]